bitfinex/quotes_ETHUSD_20240822
["timestamp","ask_amount","ask_price","bid_price","bid_amount"]
[1724347881921,0.04926775,2613.3,2612.5,6.14761]
[1724347881922,3.82689,2613.1,2612.5,6.14761]
[1724347882128,2.337,2613.2,2612.3,3.82802]
[1724347882129,3.82726,2612.9,2612.3,3.82802]
[1724347882461,3.87637775,2613.0,2612.3,3.82802]
[1724347882660,0.0485703,2612.8,2612.1,3.82829]
[1724347882980,0.0485703,2612.8,2611.9,3.82856]
[1724347882981,3.82771,2612.6,2611.9,3.82856]
[1724347883326,3.87613826,2612.5,2611.8,2.3199]
[1724347883562,3.87613826,2612.5,2611.8,4.56335311]
[1724347883826,3.87613826,2612.5,2611.9,3.82861]
[1724347884159,0.04838826,2612.5,2611.9,3.82861]
[1724347884376,0.04838826,2612.5,2611.7,3.82891]
[1724347884694,3.82808,2612.3,2611.7,3.82891]
[1724347884875,3.82784,2612.5,2611.7,3.82891]
[1724347885058,3.87462173,2612.4,2611.7,3.82891]
[1724347886979,3.87462173,2612.4,2611.8,3.82872]
[1724347887190,3.87462173,2612.4,2611.9,0.765752]
[1724347887356,3.82806,2612.3,2611.6,2.2693]
[1724347887683,3.8285,2612.0,2611.3,6.31365]
[1724347887856,3.8285,2612.0,2611.4,3.82926]
[1724347888090,0.04656815,2611.9,2611.4,3.82926]
[1724347888269,3.8285,2612.0,2611.4,3.82926]
[1724347888608,2.2636,2612.2,2611.4,1.01431]
[1724347888763,3.82793,2612.4,2611.6,3.82897]
[1724347888965,0.04654993,2612.1,2611.6,3.82897]
[1724347889171,3.82793,2612.4,2611.7,3.82881]
[1724347889516,3.82825,2612.2,2611.4,3.82931]
[1724347889691,3.82862,2612.0,2611.4,3.82924]
[1724347890014,3.82865,2611.9,2611.2,6.29874]
[1724347890307,3.87513921,2611.9,2611.2,6.29874]
[1724347890485,3.82881,2611.8,2611.2,6.29874]
[1724347890683,0.04647706,2611.7,2611.2,5.142403]
[1724347891309,0.04647706,2611.7,2611.2,7.65908]
[1724347891523,0.04647706,2611.7,2611.2,3.82954]
[1724347892745,3.87539706,2611.7,2611.1,3.82976]
[1724347893050,3.82909,2611.6,2611.0,3.82987]
[1724347893399,0.04634345,2611.5,2611.0,3.82987]
[1724347893740,3.82938,2611.4,2610.8,3.83012]
[1724347893884,3.82938,2611.4,2610.9,3.83008]
[1724347894085,0.04634345,2611.3,2610.9,3.83008]
[1724347894534,0.04634345,2611.3,2610.9,4.5961]
[1724347894738,3.82909,2611.6,2610.9,4.5961]
[1724347894941,0.04634345,2611.2,2610.9,3.83008]
[1724347895234,3.8294,2611.4,2610.8,3.83012]
[1724347895437,3.8294,2611.4,2610.9,3.83008]
[1724347895733,0.04574825,2611.3,2610.9,3.83008]
[1724347895942,0.04574825,2611.3,2610.8,7.66028]
[1724347896287,2.92525431,2611.3,2610.8,3.83012]
[1724347896639,3.60071974,2611.3,2610.7,3.83025]
[1724347896938,3.82967,2611.2,2610.6,3.83039]
[1724347897236,3.82981,2611.1,2610.6,3.83039]
[1724347897458,3.83012,2610.9,2610.4,3.83074]
[1724347897588,3.83002,2611.0,2610.4,3.83074]
[1724347897788,0.04540196,2610.8,2610.4,3.83071]
[1724347898021,3.83002,2611.0,2610.4,7.66145]
[1724347898240,0.04540196,2610.7,2610.4,3.83071]
[1724347898455,7.66005,2611.0,2610.4,3.83071]
[1724347898606,0.04540196,2610.6,2610.4,3.83071]
[1724347898800,3.83002,2611.0,2610.4,3.83071]
[1724347899002,3.83002,2611.0,2610.5,3.83067]
[1724347899563,3.83002,2611.0,2610.5,3.83065]
[1724347900707,0.04540196,2610.9,2610.5,3.83065]
[1724347900937,0.04540196,2610.9,2610.6,3.83051]
[1724347901145,3.82973,2611.2,2610.7,3.83037]
[1724347901348,6.70904606,2611.3,2610.8,3.83022]
[1724347901504,6.70904606,2611.3,2610.6,3.83039]
[1724347901505,3.82966,2611.2,2610.6,3.83039]
[1724347902261,3.83003,2611.0,2610.2,7.66202]
[1724347902468,3.83003,2611.0,2610.3,0.993482]
[1724347902824,6.23095,2610.8,2610.3,0.993482]
[1724347903266,6.23095,2610.8,2610.3,4.824372]
[1724347903851,3.83004,2611.0,2610.4,3.83082]
[1724347904264,3.8301,2610.9,2610.4,3.83082]
[1724347904650,3.82974,2611.2,2610.6,3.83052]
[1724347904868,2.4244,2611.3,2610.9,3.83]
[1724347905754,0.60052491,2611.5,2611.0,3.82993]
[1724347906064,3.82938,2611.4,2611.0,3.82993]
[1724347906266,6.20355,2611.6,2611.0,3.82993]
[1724347906687,3.82936,2611.4,2610.9,3.83008]
[1724347907418,3.82936,2611.4,2610.8,3.83009]
[1724347907731,3.82962,2611.3,2610.8,3.83009]
[1724347907939,6.19558,2611.1,2610.6,3.83045]
[1724347908248,3.83002,2611.0,2610.5,3.83066]
[1724347908396,2.3657,2611.0,2610.0,6.28524]
[1724347908578,3.83083,2610.4,2609.8,7.66321]
[1724347908779,3.83083,2610.4,2609.9,3.83155]
[1724347909113,3.83083,2610.4,2609.8,3.83159]
[1724347909881,3.83083,2610.4,2609.6,3.83191]
[1724347910185,3.83129,2610.1,2609.4,10.06133]
[1724347910386,3.83129,2610.1,2609.4,6.22909]
[1724347910387,6.15219,2610.1,2609.4,6.22909]
[1724347910643,7.663,2610.0,2609.4,3.83219]
[1724347910779,7.663,2610.0,2608.8,3.947]
[1724347910780,2.4107,2609.8,2609.0,3.83285]
[1724347910981,2.4107,2609.8,2608.4,3.83372]
[1724347910982,2.4107,2609.5,2608.4,3.83372]
[1724347911282,2.4107,2609.1,2608.4,3.83365]
[1724347911587,2.4107,2609.1,2608.4,4.842127]
[1724347911588,6.24347,2609.1,2608.4,4.842127]
[1724347911784,3.83307,2608.9,2608.4,1.008477]
[1724347912049,6.24347,2609.1,2608.2,3.83402]
[1724347912224,6.24347,2609.1,2608.4,3.83364]
[1724347912420,3.8329,2609.0,2608.3,3.83391]
[1724347912627,6.24347,2609.1,2608.3,7.66782]
[1724347912784,2.4107,2609.1,2608.3,4.600692]
[1724347912984,2.4107,2609.1,2608.3,3.83391]
[1724347913235,2.4107,2609.1,2608.5,3.8335]
[1724347913399,2.4107,2609.1,2608.3,3.83391]
[1724347913582,2.4107,2609.1,2608.5,3.8335]
[1724347913783,1.61087728,2609.1,2608.6,0.38335]
[1724347914004,1.61087728,2609.1,2608.6,4.2168]
[1724347914204,3.83244,2609.3,2608.6,4.2168]
[1724347914433,3.8323,2609.4,2608.7,3.83332]
[1724347914643,3.8323,2609.4,2608.6,0.38335]
[1724347914644,3.83258,2609.3,2608.6,0.38335]
[1724347914955,3.83275,2609.1,2608.3,3.83385]
[1724347915123,3.83275,2609.1,2608.1,6.13645]
[1724347915124,3.83273,2609.2,2608.5,3.8336]
[1724347915435,3.8326,2609.2,2608.6,3.83333]
[1724347915659,4.599093,2609.2,2608.4,3.83372]
[1724347915781,0.04417413,2609.1,2608.4,3.83376]
[1724347915980,0.04417413,2609.1,2608.7,3.83321]
[1724347916245,3.83162,2609.9,2608.8,2.3023]
[1724347916422,3.83162,2609.9,2609.0,3.83288]
[1724347916587,3.83185,2609.7,2609.0,3.83288]
[1724347916936,3.83221,2609.5,2608.8,6.13543]
[1724347917134,2.3661,2609.6,2608.8,6.13543]
[1724347917647,2.3661,2609.6,2608.8,3.83305]
[1724347917954,2.3661,2609.6,2608.4,7.66734]
[1724347917955,3.83248,2609.3,2608.4,7.66734]
[1724347918133,3.83284,2609.1,2608.4,1.066734]
[1724347918440,3.83304,2608.9,2608.3,3.83387]
[1724347918780,3.83283,2609.1,2608.3,3.8338]
[1724347919333,3.83304,2608.9,2608.3,3.8338]
[1724347919533,3.83319,2608.8,2608.3,0.997025]
[1724347919834,6.26385,2608.7,2608.1,3.83415]
[1724347920184,6.3062,2609.1,2608.4,3.83365]
[1724347920622,6.3062,2609.1,2608.2,7.66801]
[1724347920623,3.83304,2608.9,2608.2,7.66801]
[1724347920801,3.83304,2608.9,2608.2,4.600751]
[1724347920993,3.83304,2608.9,2608.2,8.434711]
[1724347921199,6.3062,2609.1,2608.2,4.600751]
[1724347921406,6.3062,2609.1,2608.4,3.83367]
[1724347921749,3.83289,2609.0,2608.4,3.83367]
[1724347921927,6.3062,2609.1,2608.4,3.83366]
[1724347922228,6.3062,2609.1,2608.2,3.83397]
[1724347922229,2.4734,2609.1,2608.2,3.83397]
[1724347922398,2.4734,2609.1,2608.6,3.83334]
[1724347922599,2.4534,2609.4,2608.8,3.83307]
[1724347922835,2.4534,2609.7,2609.0,3.83282]
[1724347923004,3.83224,2609.5,2608.8,3.83313]
[1724347923190,0.3136771,2609.6,2609.0,3.83279]
[1724347923393,0.3136771,2609.6,2608.9,3.8329]
[1724347923394,3.83215,2609.5,2608.9,3.8329]
[1724347923690,3.83215,2609.5,2608.8,0.383313]
[1724347923890,0.3136771,2609.6,2608.8,4.216473]
[1724347923891,3.83231,2609.4,2608.8,4.216473]
[1724347924135,0.3136771,2609.6,2608.9,3.83298]
[1724347924136,4.1457871,2609.6,2608.9,3.83298]
[1724347924310,3.83219,2609.5,2608.8,8.049543]
[1724347924631,3.83219,2609.5,2608.4,3.83372]
[1724347924632,6.31086,2609.4,2608.4,3.83372]
[1724347924934,2.4785,2609.4,2609.0,3.83276]
[1724347925136,6.17251,2609.6,2609.1,3.83273]
[1724347925437,3.83226,2609.5,2608.8,3.83305]
[1724347925656,3.83247,2609.3,2608.5,2.319]
[1724347925793,2.4609,2609.1,2608.5,3.83351]
[1724347925995,2.4609,2609.1,2608.4,3.83364]
[1724347925996,3.83297,2609.0,2608.4,3.83364]
[1724347926247,2.4609,2609.1,2608.5,3.83361]
[1724347926690,6.29364,2609.1,2608.5,3.83361]
[1724347926896,3.83237,2609.4,2608.3,0.383397]
[1724347927238,7.66479,2609.4,2608.8,3.83317]
[1724347927390,3.83245,2609.3,2608.8,3.83317]
[1724347927594,3.83245,2609.3,2608.6,3.83342]
[1724347927595,3.83277,2609.1,2608.6,3.83342]
[1724347927944,4.835642,2609.3,2608.7,3.83332]
[1724347928097,3.83268,2609.2,2608.6,7.66675]
[1724347928296,3.83274,2609.1,2608.4,3.83367]
[1724347928494,3.83312,2608.9,2608.4,3.83367]
[1724347928754,6.2519,2609.0,2608.2,2.4934]
[1724347929063,3.83265,2609.2,2608.6,3.8334]
[1724347929343,3.83265,2609.2,2608.5,3.83349]
[1724347929742,3.83282,2609.1,2608.5,7.66701]
[1724347929946,3.83281,2609.1,2608.5,3.83349]
[1724347930318,4.457815,2609.2,2608.6,3.83333]
[1724347930759,3.83274,2609.1,2608.5,3.83349]
[1724347930920,3.87346864,2609.1,2608.5,3.83349]
[1724347931317,0.04072864,2609.1,2608.5,3.83349]
[1724347931511,0.04072864,2609.1,2608.5,0.383349]
[1724347931728,2.419,2609.3,2608.8,3.83315]
[1724347932033,0.0406738,2609.2,2608.8,3.83315]
[1724347932257,2.419,2609.3,2608.8,7.66624]
[1724347932412,0.0406738,2609.1,2608.8,3.83309]
[1724347932616,3.83223,2609.5,2608.9,3.83303]
[1724347932819,3.83246,2609.3,2608.7,3.83322]
[1724347933052,3.83246,2609.3,2608.8,0.609152]
[1724347933258,0.0407591,2609.2,2608.8,0.609152]
[1724347933464,0.0407591,2609.2,2609.0,3.83278]
[1724347933780,3.83177,2609.8,2609.2,3.83256]
[1724347934327,3.83231,2609.4,2608.6,6.3319]
[1724347934530,3.83296,2609.0,2608.4,3.83372]
[1724347934889,2.4043,2609.3,2608.5,3.83361]
[1724347934890,3.83274,2609.1,2608.5,3.83361]
[1724347935179,3.83274,2609.1,2608.3,5.4985]
[1724347935180,6.23679,2609.3,2608.7,3.83322]
[1724347935390,10.66443,2609.5,2608.8,3.83313]
[1724347935590,3.83253,2609.3,2608.6,7.6667]
[1724347935734,3.8329,2609.0,2608.4,3.83368]
[1724347936166,3.8329,2609.0,2608.3,3.83384]
[1724347936390,3.83267,2609.2,2608.5,3.83359]
[1724347936880,0.683216,2609.4,2608.7,3.83318]
[1724347937094,3.83262,2609.2,2608.5,6.1677]
[1724347937395,6.33225,2609.1,2608.5,3.8335]
[1724347937612,2.4995,2609.1,2608.5,3.8335]
[1724347937781,3.83297,2609.0,2608.5,3.83361]
[1724347937961,2.4995,2609.1,2608.5,3.83361]
[1724347938367,6.10096,2609.3,2608.2,9.19049]
[1724347938683,2.65173,2609.3,2608.7,3.83328]
[1724347939053,3.83187,2609.7,2609.0,3.83287]
[1724347939262,3.83187,2609.7,2608.8,2.4165]
[1724347939263,3.83209,2609.6,2608.9,3.83292]
[1724347939483,4.442127,2609.6,2608.9,3.83292]
[1724347939648,3.83216,2609.5,2608.9,3.83292]
[1724347939862,3.83216,2609.5,2608.7,3.83322]
[1724347940060,3.83255,2609.3,2608.7,3.8332]
[1724347940378,0.610105,2609.2,2608.5,6.25]
[1724347940581,2.2685,2609.4,2608.5,6.25]
[1724347940831,6.10088,2609.4,2608.8,3.83316]
[1724347941012,6.10088,2609.4,2608.7,3.83321]
[1724347941013,3.83245,2609.3,2608.5,6.25]
[1724347941150,3.83293,2609.0,2608.3,3.83378]
[1724347941461,3.83293,2609.0,2608.4,3.83367]
[1724347941860,3.8332,2608.8,2608.3,3.83378]
[1724347942059,3.8328,2609.1,2608.3,3.83382]
[1724347942299,3.8328,2609.1,2608.5,7.66704]
[1724347942502,2.2685,2609.2,2608.2,6.25047]
[1724347942660,2.2685,2609.2,2608.3,0.625047]
[1724347942988,6.83208,2609.6,2608.7,3.83322]
[1724347943202,3.83238,2609.4,2608.8,3.83317]
[1724347943499,2.4807,2609.5,2608.9,3.83294]
[1724347943818,3.83131,2610.1,2609.3,3.83235]
[1724347943819,3.8316,2609.9,2609.3,3.83235]
[1724347943951,2.77,2610.0,2609.4,3.83221]
[1724347944150,6.60145,2610.0,2609.4,3.83221]
[1724347944408,2.77,2610.0,2609.5,3.83212]
[1724347944667,2.77,2610.0,2609.8,3.83159]
[1724347944944,6.272,2610.4,2609.8,3.83159]
[1724347945233,7.282255,2610.4,2609.7,3.83185]
[1724347945597,3.83122,2610.2,2609.3,7.66469]
[1724347945800,2.3369,2609.9,2609.3,3.83232]
[1724347946021,6.16856,2609.9,2609.3,3.83232]
[1724347946199,0.03768335,2609.8,2609.3,3.83232]
[1724347947034,0.03768335,2609.8,2609.5,3.83211]
[1724347947248,6.16802,2610.2,2609.5,3.83211]
[1724347947391,4.48584535,2610.1,2609.5,3.83211]
[1724347947788,0.65448535,2610.1,2609.5,3.83211]
[1724347948099,4.48575535,2610.1,2609.5,3.83211]
[1724347948432,4.48575535,2610.1,2609.3,3.83233]
[1724347948433,3.83143,2610.0,2609.3,3.83233]
[1724347948637,3.83172,2609.8,2609.1,3.83264]
[1724347948844,3.83218,2609.5,2608.8,3.83304]
[1724347948989,3.83218,2609.5,2608.8,7.66609]
[1724347949190,3.83212,2609.6,2608.9,3.833]
[1724347949384,3.83212,2609.6,2609.0,3.83287]
[1724347949641,0.03813505,2609.5,2609.0,3.83287]
[1724347949803,3.87028505,2609.5,2609.0,3.83287]
[1724347950003,0.03813505,2609.5,2609.0,3.83287]
[1724347951038,0.03813505,2609.5,2608.8,3.83304]
[1724347951039,3.83231,2609.4,2608.8,3.83304]
[1724347951241,0.03831822,2609.3,2608.8,7.66612]
[1724347951438,0.03831822,2609.3,2609.1,3.83273]
[1724347951641,3.83176,2609.8,2609.2,3.83259]
[1724347951813,3.83176,2609.8,2609.1,6.22873]
[1724347951995,0.03825108,2609.7,2609.1,10.06136]
[1724347952191,0.03825108,2609.7,2609.1,6.22873]
[1724347952399,0.03825108,2609.7,2609.3,3.83233]
[1724347952705,3.8312,2610.2,2609.5,3.83209]
[1724347952906,0.03825108,2609.6,2609.5,3.83209]
[1724347953107,3.8312,2610.2,2609.5,3.83209]
[1724347953328,2.2669,2610.3,2609.3,3.83236]
[1724347953538,3.8315,2610.0,2609.4,3.83225]
[1724347953723,3.8315,2610.0,2609.3,3.83233]
[1724347953724,3.8315,2610.0,2609.3,3.83243]
[1724347953935,0.03825108,2609.9,2609.3,3.83243]
[1724347954562,0.03825108,2609.9,2609.5,3.83205]
[1724347954856,7.88911,2610.2,2609.5,3.83206]
[1724347955004,0.03825108,2610.1,2609.5,3.83206]
[1724347955209,3.86955108,2610.1,2609.5,4.598483]
[1724347955668,0.03825108,2610.1,2609.1,2.3961]
[1724347955845,3.83169,2609.9,2609.2,3.83244]
[1724347956079,0.03825108,2610.1,2609.6,3.8319]
[1724347956231,3.8315,2610.0,2609.1,2.379]
[1724347956435,0.03825108,2609.9,2609.4,3.83219]
[1724347956651,2.2865,2609.8,2609.2,3.8325]
[1724347956850,6.11829,2609.8,2609.2,3.8325]
[1724347957048,0.03825108,2609.7,2609.2,3.8325]
[1724347957270,3.87025108,2609.7,2609.0,7.6656]
[1724347957588,3.83202,2609.6,2608.8,3.83311]
[1724347957791,7.66413,2609.6,2609.0,3.83286]
[1724347958087,0.03825108,2609.5,2608.8,3.83305]
[1724347958291,0.03825108,2609.5,2609.0,3.83279]
[1724347958493,3.87043108,2609.5,2609.0,3.83279]
[1724347958653,0.03825108,2609.5,2609.0,3.83279]
[1724347958855,0.03825108,2609.5,2608.8,3.83305]
[1724347958856,3.87048108,2609.5,2608.8,3.83305]
[1724347959056,0.03825108,2609.5,2608.9,3.83294]
[1724347959269,3.83245,2609.3,2608.8,3.83305]
[1724347959462,2.2946,2609.7,2608.6,3.83345]
[1724347959800,3.83246,2609.3,2608.7,3.83327]
[1724347959976,2.2946,2609.5,2608.8,3.83306]
[1724347959977,9.95902,2609.5,2608.8,3.83306]
[1724347960176,6.12677,2609.5,2608.8,4.216366]
[1724347960375,3.87063108,2609.4,2608.8,4.216366]
[1724347960549,3.83248,2609.3,2608.8,3.83306]
[1724347960948,6.12677,2609.5,2608.8,7.66614]
[1724347961288,6.12677,2609.5,2608.8,3.83306]
[1724347961475,0.03825108,2609.4,2608.9,3.83301]
[1724347961873,3.83245,2609.3,2608.8,0.383306]
[1724347962083,0.03815341,2609.2,2608.6,3.83334]
[1724347962248,0.03815341,2609.2,2608.7,3.83323]
[1724347962443,0.03815341,2609.2,2608.8,3.83309]
[1724347962688,3.83232,2609.4,2608.8,7.66615]
[1724347962993,3.83232,2609.4,2608.8,8.432745]
[1724347962994,0.03815341,2609.3,2608.8,8.432745]
[1724347963171,0.03815341,2609.3,2608.8,4.599675]
[1724347963797,0.03815341,2609.3,2608.8,8.432765]
[1724347964098,0.03815341,2609.3,2609.1,3.83262]
[1724347964266,0.03815341,2609.3,2609.0,3.83287]
[1724347964472,3.83254,2609.3,2608.8,0.766615]
[1724347964704,3.83254,2609.3,2608.6,3.83339]
[1724347964705,3.87078341,2609.2,2608.6,7.66677]
[1724347965093,3.83263,2609.2,2608.6,3.83338]
[1724347965417,3.83263,2609.2,2608.4,6.30588]
[1724347965418,3.87089341,2609.1,2608.4,6.30583]
[1724347965573,6.16131,2609.0,2608.4,3.83363]
[1724347965767,6.16131,2609.0,2608.4,7.66732]
[1724347966030,2.3284,2609.0,2608.5,3.83358]
[1724347966318,0.03815341,2608.9,2608.8,3.83318]
[1724347966798,3.83232,2609.4,2608.8,7.66628]
[1724347966969,6.13679,2609.6,2608.9,0.766628]
[1724347967182,6.13679,2609.6,2609.1,3.83266]
[1724347967506,6.13679,2609.6,2609.0,3.83276]
[1724347967822,9.96892,2609.6,2609.0,3.83276]
[1724347967993,2.3047,2609.6,2609.2,3.83255]
[1724347968174,7.66364,2609.8,2609.2,3.83255]
[1724347968378,3.83185,2609.7,2609.2,3.83255]
[1724347968580,3.83179,2609.8,2609.2,4.833823]
[1724347968895,2.77,2610.0,2609.6,3.83191]
[1724347969523,2.77,2610.0,2609.5,3.83206]
[1724347969892,2.77,2610.0,2609.6,3.83197]
[1724347970222,6.10228,2610.2,2609.6,10.14574]
[1724347970223,3.83118,2610.2,2609.6,10.14574]
[1724347970519,3.83118,2610.2,2609.6,7.328294]
[1724347970739,7.66188,2610.4,2609.6,7.328284]
[1724347971025,3.83092,2610.4,2609.8,3.83161]
[1724347971181,3.83092,2610.4,2609.9,3.83154]
[1724347971582,3.83071,2610.5,2609.9,3.83154]
[1724347971781,3.83083,2610.4,2609.8,4.57207173]
[1724347972018,6.19663,2610.4,2609.8,4.57207173]
[1724347972236,6.19663,2610.4,2609.8,3.83161]
[1724347973102,2.3658,2610.4,2609.9,3.83147]
[1724347973296,3.83061,2610.6,2610.0,3.8314]
[1724347973497,3.83069,2610.5,2610.0,3.8314]
[1724347973701,3.83061,2610.6,2610.0,3.8314]
[1724347973929,0.67261127,2610.6,2609.8,3.83157]
[1724347974100,2.2946,2610.7,2609.8,3.83157]
[1724347974300,3.831,2610.3,2609.8,3.83157]
[1724347974741,3.83115,2610.2,2609.6,10.1456]
[1724347975029,3.83128,2610.1,2609.6,2.4818]
[1724347975230,2.3346,2610.2,2609.3,6.83243]
[1724347975416,2.3346,2610.2,2609.3,3.83243]
[1724347975619,3.83164,2609.9,2609.3,7.66477]
[1724347975957,0.03916027,2609.8,2609.4,2.4413]
[1724347976145,0.03916027,2609.8,2609.7,3.83185]
[1724347976295,2.3346,2610.2,2609.7,4.598249]
[1724347976493,0.03909316,2610.1,2609.7,3.83185]
[1724347976720,7.6621,2610.3,2609.7,3.83185]
[1724347976919,0.03909316,2610.0,2609.8,3.83163]
[1724347977108,0.03909316,2610.0,2609.8,3.83157]
[1724347977330,3.83099,2610.3,2609.7,3.83177]
[1724347977491,0.03909316,2609.9,2609.7,3.83177]
[1724347977803,7.66209,2610.3,2609.7,3.83177]
[1724347978004,7.66209,2610.3,2609.8,3.8317]
[1724347978005,3.83099,2610.3,2609.8,3.8317]
[1724347978205,6.23389,2610.7,2610.1,3.83113]
[1724347978415,3.83047,2610.7,2610.2,3.83111]
[1724347978623,3.83047,2610.7,2610.2,3.83104]
[1724347978811,9.00358,2610.9,2610.3,3.83088]
[1724347979016,2.77,2610.9,2610.5,3.83065]
[1724347979241,6.60017,2610.9,2610.3,6.23448]
[1724347979424,6.60017,2610.9,2610.4,0.623448]
[1724347979755,3.83029,2610.8,2610.4,0.623448]
[1724347980055,3.83029,2610.8,2610.1,4.463123]
[1724347980056,6.60017,2610.9,2610.1,4.463083]
[1724347980356,3.83048,2610.7,2610.1,4.463073]
[1724347980655,3.83048,2610.7,2610.1,3.83113]
[1724347980961,3.83078,2610.5,2610.0,2.4036]
[1724347981312,3.83078,2610.5,2610.0,6.23498]
[1724347981611,2.77,2610.9,2610.3,3.83094]
[1724347981929,6.60022,2610.9,2610.3,3.83094]
[1724347982136,3.83047,2610.7,2610.1,3.83117]
[1724347982443,3.83025,2610.8,2610.2,0.623477]
[1724347982626,2.77,2610.9,2610.2,0.623477]
[1724347982809,2.77,2610.9,2609.7,3.83178]
[1724347983009,3.83095,2610.4,2609.8,3.0]
[1724347983429,3.83095,2610.4,2609.7,6.29088]
[1724347983430,3.83099,2610.3,2609.7,6.29086]
[1724347983644,7.66187,2610.4,2609.9,3.83153]
[1724347984064,7.66184,2610.4,2609.9,3.83153]
[1724347984268,6.17401,2610.5,2609.4,2.4937]
[1724347984546,3.83112,2610.2,2609.6,3.83198]
[1724347985068,3.83112,2610.2,2609.7,3.83182]
[1724347985271,3.83112,2610.2,2609.5,3.83202]
[1724347985473,3.83112,2610.2,2609.6,3.83192]
[1724347985848,6.28394,2610.0,2609.3,3.83234]
[1724347986069,3.83164,2609.9,2609.4,3.83226]
[1724347986399,3.83122,2610.2,2609.7,3.83183]
[1724347986773,3.83128,2610.1,2609.6,3.83186]
[1724347987082,3.83115,2610.2,2609.7,3.83184]
[1724347987802,2.4525,2610.3,2609.7,0.76637]
[1724347987951,3.83101,2610.3,2609.8,3.83169]
[1724347988156,3.83115,2610.2,2609.7,3.13667]
[1724347988404,3.83115,2610.2,2609.7,6.96845]
[1724347988957,3.83093,2610.4,2609.7,6.96845]
[1724347988958,3.83093,2610.4,2609.8,4.911731]
[1724347989159,10.12866,2610.6,2610.1,3.83125]
[1724347989390,3.8306,2610.6,2610.1,3.83125]
[1724347989698,7.66122,2610.6,2610.1,3.83125]
[1724347989899,3.83083,2610.4,2609.9,3.83141]
[1724347990197,3.83083,2610.4,2609.9,4.9427591]
[1724347990772,3.8306,2610.6,2609.5,7.66406]
[1724347990773,3.83127,2610.1,2609.5,7.66406]
[1724347990973,3.8315,2610.0,2609.6,3.0]
[1724347991172,3.83117,2610.2,2609.5,3.83201]
[1724347991372,0.0395933,2609.9,2609.5,3.83201]
[1724347991572,3.8313,2610.1,2609.6,3.83192]
[1724347992204,3.8710233,2610.0,2609.5,3.83215]
[1724347992360,0.0395933,2610.0,2609.5,3.83207]
[1724347992565,0.0395933,2610.0,2609.6,3.83199]
[1724347992762,3.83105,2610.3,2609.7,3.83172]
[1724347993072,3.83091,2610.4,2609.8,6.19051]
[1724347993275,0.0395933,2610.3,2609.8,6.19051]
[1724347993456,3.8705933,2610.3,2609.8,6.19051]
[1724347993669,3.8705933,2610.3,2609.8,2.3588]
[1724347994712,3.8705933,2610.3,2609.8,6.19049]
[1724347994912,0.0395933,2610.3,2609.8,6.19049]
[1724347995070,3.8307,2610.5,2610.1,3.83126]
[1724347995272,0.03928227,2610.4,2610.1,3.83126]
[1724347995481,0.03928227,2610.4,2609.9,3.8315]
[1724347995482,7.6612,2610.6,2610.0,3.83131]
[1724347995814,5.3806,2610.8,2610.1,3.83124]
[1724347995815,0.03932496,2610.5,2610.1,3.83124]
[1724347996118,3.83039,2610.7,2610.2,3.83105]
[1724347996414,6.21095,2610.8,2610.2,7.66209]
[1724347996415,0.03932496,2610.6,2610.2,7.66209]
[1724347996623,0.03932496,2610.6,2610.3,3.83096]
[1724347996772,3.8304,2610.7,2610.3,3.83096]
[1724347996975,0.03932496,2610.5,2610.3,3.83096]
[1724347997203,0.03932496,2610.5,2610.3,4.4930284]
[1724347997419,0.03932496,2610.5,2610.3,0.6620684]
[1724347997620,3.8304,2610.7,2610.2,6.2377]
[1724347998214,0.03932496,2610.6,2610.2,6.23764]
[1724347998428,3.86987496,2610.6,2610.2,2.4066]
[1724347999773,3.8307,2610.5,2610.1,3.83121]
[1724348000001,3.831,2610.3,2609.9,2.3539]
[1724348000221,3.831,2610.3,2609.6,3.83189]
[1724348000222,3.83097,2610.3,2609.6,6.18579]
[1724348000408,3.83097,2610.3,2609.7,3.83182]
[1724348000409,3.83119,2610.2,2609.7,3.83182]
[1724348000719,3.87071621,2610.2,2609.8,3.8317]
[1724348000931,0.03952621,2610.2,2609.8,3.8317]
[1724348001160,3.83102,2610.3,2609.8,3.8317]
[1724348001448,3.83102,2610.3,2609.6,3.83189]
[1724348001449,3.87078425,2610.1,2609.6,3.83189]
[1724348001642,0.766199,2610.3,2609.3,2.466]
[1724348001643,3.83165,2609.9,2609.3,2.466]
[1724348001843,3.83179,2609.8,2609.0,2.466]
[1724348001993,2.4581,2609.9,2608.8,3.83309]
[1724348002193,0.03932496,2609.7,2608.8,3.83309]
[1724348002394,3.83222,2609.5,2608.9,3.83292]
[1724348002722,3.83208,2609.6,2609.0,3.83287]
[1724348002896,0.03932496,2609.5,2609.0,3.83287]
[1724348003306,0.03932496,2609.5,2609.0,3.83279]
[1724348003609,6.29048,2609.4,2608.8,0.629909]
[1724348003809,6.29048,2609.4,2608.6,3.83335]
[1724348003810,3.83245,2609.3,2608.6,3.83335]
[1724348004016,3.83268,2609.2,2608.6,3.83335]
[1724348004213,3.83268,2609.2,2608.4,2.466]
[1724348004214,3.83275,2609.1,2608.4,6.29966]
[1724348004438,3.87200496,2609.2,2608.5,3.83357]
[1724348004595,3.87150675,2609.0,2608.4,3.83366]
[1724348004794,3.83263,2609.2,2608.4,3.83366]
[1724348005015,0.03858675,2608.9,2608.6,3.83333]
[1724348005227,6.29045,2609.4,2608.7,3.83329]
[1724348005409,0.03851962,2608.8,2608.7,3.83329]
[1724348005625,3.83248,2609.3,2608.7,4.846782]
[1724348006258,3.832,2609.6,2608.8,3.83315]
[1724348006451,0.03851962,2609.2,2609.0,3.83287]